[Event "Titled Tuesday Blitz June 27 Late 2023"]
[White "Kiselev, Pavel"]
[Black "Nunez V, Gustavo Eduardo"]
[WhiteFideId "4191102"]
[BlackFideId "4403690"]
[WhiteElo "2226"]
[BlackElo "2410"]
[Result "0-1"]
[Round "3"]
[TimeControl "180+2"]
[Date "2023.06.27"]
[WhiteClock "0:02:52"]
[BlackClock "0:02:54"]
[Board "160"]

1. Nf3 {[%clk 0:02:59]}  g6 {[%clk 0:02:59]} 2. c4 {[%clk 0:02:59]}  Bg7 {[%clk 0:03:00]} 3. d4 {[%clk 0:03:00]}  d6 {[%clk 0:03:00]} 4. Nc3 {[%clk 0:03:00]}  Nd7 {[%clk 0:03:01]} 5. e4 {[%clk 0:03:00]}  e5 {[%clk 0:03:01]} 6. d5 {[%clk 0:03:00]}  Ne7 {[%clk 0:03:01]} 7. Bd3 {[%clk 0:03:00]}  O-O {[%clk 0:03:01]} 8. g4 {[%clk 0:03:00]}  Nc5 {[%clk 0:03:01]} 9. Bc2 {[%clk 0:03:00]}  Bxg4 {[%clk 0:03:01]} 10. h3 {[%clk 0:02:56]}  Bh5 {[%clk 0:03:00]} 11. Be3 {[%clk 0:02:56]}  b6 {[%clk 0:02:55]} 12. b4 {[%clk 0:02:55]}  Nd7 {[%clk 0:02:56]} 13. a3 {[%clk 0:02:55]}  a5 {[%clk 0:02:54]} 14. c5 {[%clk 0:02:52]}  axb4 {[%clk 0:02:54]} 15. axb4 {[%clk 0:02:53]}  Rxa1 {[%clk 0:02:54]} 16. Qxa1 {[%clk 0:02:52]}  Bxf3 {[%clk 0:02:54]} 0-1


[Site "https://www.chess.com"]

[Event "Titled Tuesday Blitz June 27 Late 2023"]
[White "Bueno, Alfeu Junior Varela"]
[Black "Broca Jimenez, Fernando"]
[WhiteFideId "2108879"]
[BlackFideId "5104742"]
[WhiteElo "2404"]
[BlackElo "2222"]
[Result "0-1"]
[Round "3"]
[TimeControl "180+2"]
[Date "2023.06.27"]
[WhiteClock "0:00:00"]
[BlackClock "0:00:14"]
[Board "161"]

1. e4 {[%clk 0:03:00]}  e5 {[%clk 0:02:59]} 2. Nc3 {[%clk 0:03:01]}  Nf6 {[%clk 0:02:55]} 3. f4 {[%clk 0:03:00]}  d5 {[%clk 0:02:56]} 4. fxe5 {[%clk 0:03:00]}  Nxe4 {[%clk 0:02:55]} 5. Qf3 {[%clk 0:03:01]}  Nxc3 {[%clk 0:02:40]} 6. dxc3 {[%clk 0:03:01]}  Be7 {[%clk 0:02:38]} 7. Bf4 {[%clk 0:03:01]}  O-O {[%clk 0:02:35]} 8. O-O-O {[%clk 0:03:00]}  c6 {[%clk 0:02:34]} 9. h4 {[%clk 0:03:00]}  f6 {[%clk 0:02:13]} 10. Qg3 {[%clk 0:02:55]}  fxe5 {[%clk 0:02:09]} 11. Bxe5 {[%clk 0:02:56]}  Bf6 {[%clk 0:02:09]} 12. Nf3 {[%clk 0:02:56]}  Bf5 {[%clk 0:02:07]} 13. Bd3 {[%clk 0:02:55]}  Bxd3 {[%clk 0:02:06]} 14. cxd3 {[%clk 0:02:56]}  Nd7 {[%clk 0:02:05]} 15. Bd6 {[%clk 0:02:53]}  Rf7 {[%clk 0:02:00]} 16. Ng5 {[%clk 0:02:48]}  Bxg5+ {[%clk 0:01:58]} 17. hxg5 {[%clk 0:02:49]}  g6 {[%clk 0:01:57]} 18. Rhf1 {[%clk 0:02:15]}  Qe8 {[%clk 0:01:46]} 19. Rfe1 {[%clk 0:02:15]}  Qd8 {[%clk 0:01:45]} 20. Re2 {[%clk 0:01:52]}  Nf8 {[%clk 0:01:44]} 21. Rde1 {[%clk 0:01:51]}  Qd7 {[%clk 0:01:11]} 22. Re7 {[%clk 0:01:24]}  Qf5 {[%clk 0:01:09]} 23. Qh4 {[%clk 0:01:12]}  Rd8 {[%clk 0:00:56]} 24. Rxf7 {[%clk 0:01:06]}  Qxf7 {[%clk 0:00:55]} 25. Be5 {[%clk 0:00:39]}  Re8 {[%clk 0:00:44]} 26. Qh6 {[%clk 0:00:32]}  Rxe5 {[%clk 0:00:41]} 27. Rxe5 {[%clk 0:00:28]}  Qf4+ {[%clk 0:00:41]} 28. Kc2 {[%clk 0:00:28]}  Qxe5 {[%clk 0:00:41]} 29. Qh4 {[%clk 0:00:25]}  Ne6 {[%clk 0:00:38]} 30. Qg4 {[%clk 0:00:24]}  Kg7 {[%clk 0:00:31]} 31. g3 {[%clk 0:00:20]}  c5 {[%clk 0:00:31]} 32. Qh3 {[%clk 0:00:17]}  b6 {[%clk 0:00:29]} 33. Qh6+ {[%clk 0:00:16]}  Kg8 {[%clk 0:00:28]} 34. Qh3 {[%clk 0:00:17]}  Qf5 {[%clk 0:00:20]} 35. Qg2 {[%clk 0:00:11]}  Nxg5 {[%clk 0:00:19]} 36. Qe2 {[%clk 0:00:10]}  Kg7 {[%clk 0:00:17]} 37. Qe7+ {[%clk 0:00:08]}  Nf7 {[%clk 0:00:18]} 38. Qxa7 {[%clk 0:00:07]}  Qe6 {[%clk 0:00:18]} 39. a4 {[%clk 0:00:06]}  d4 {[%clk 0:00:18]} 40. cxd4 {[%clk 0:00:06]}  cxd4 {[%clk 0:00:18]} 41. b4 {[%clk 0:00:07]}  Qa2+ {[%clk 0:00:17]} 42. Kd1 {[%clk 0:00:07]}  Qb3+ {[%clk 0:00:17]} 43. Ke2 {[%clk 0:00:07]}  Qc2+ {[%clk 0:00:17]} 44. Ke1 {[%clk 0:00:05]}  Qxd3 {[%clk 0:00:18]} 45. a5 {[%clk 0:00:05]}  Qe3+ {[%clk 0:00:18]} 46. Kf1 {[%clk 0:00:04]}  d3 {[%clk 0:00:19]} 47. Qxb6 {[%clk 0:00:03]}  Qe2+ {[%clk 0:00:20]} 48. Kg1 {[%clk 0:00:03]}  d2 {[%clk 0:00:20]} 49. Qd4+ {[%clk 0:00:04]}  Ne5 {[%clk 0:00:15]} 50. Qxe5+ {[%clk 0:00:00]}  Qxe5 {[%clk 0:00:14]} 0-1


[Site "https://www.chess.com"]

[Event "Titled Tuesday Blitz June 27 Late 2023"]
[White "Vila Dupla, Aurelio"]
[Black "Vega Gutierrez, Sabrina"]
[WhiteFideId "2203383"]
[BlackFideId "2219026"]
[WhiteElo "2208"]
[BlackElo "2403"]
[Result "0-1"]
[Round "3"]
[TimeControl "180+2"]
[Date "2023.06.27"]
[WhiteClock "0:00:00"]
[BlackClock "0:00:19"]
[Board "162"]

1. Nf3 {[%clk 0:03:00]}  d5 {[%clk 0:03:00]} 2. d4 {[%clk 0:03:00]}  c6 {[%clk 0:02:57]} 3. c4 {[%clk 0:02:59]}  e6 {[%clk 0:02:57]} 4. cxd5 {[%clk 0:02:59]}  exd5 {[%clk 0:02:57]} 5. Nc3 {[%clk 0:02:59]}  Bf5 {[%clk 0:02:57]} 6. Bf4 {[%clk 0:02:58]}  Bd6 {[%clk 0:02:56]} 7. Bxd6 {[%clk 0:02:56]}  Qxd6 {[%clk 0:02:57]} 8. Qb3 {[%clk 0:02:55]}  Qe7 {[%clk 0:02:54]} 9. e3 {[%clk 0:02:54]}  Nf6 {[%clk 0:02:54]} 10. Ne5 {[%clk 0:02:49]}  O-O {[%clk 0:02:54]} 11. Bd3 {[%clk 0:02:49]}  Bxd3 {[%clk 0:02:48]} 12. Nxd3 {[%clk 0:02:49]}  Na6 {[%clk 0:02:48]} 13. O-O {[%clk 0:02:48]}  Ne4 {[%clk 0:02:45]} 14. Qc2 {[%clk 0:02:35]}  f5 {[%clk 0:02:44]} 15. Rfe1 {[%clk 0:02:23]}  Kh8 {[%clk 0:02:43]} 16. f4 {[%clk 0:02:22]}  Rf6 {[%clk 0:02:40]} 17. a3 {[%clk 0:02:19]}  Nc7 {[%clk 0:02:39]} 18. Ne5 {[%clk 0:02:19]}  Rg8 {[%clk 0:02:33]} 19. Nxe4 {[%clk 0:02:18]}  fxe4 {[%clk 0:02:21]} 20. Qf2 {[%clk 0:02:17]}  Rh6 {[%clk 0:02:18]} 21. Rac1 {[%clk 0:02:11]}  Ne8 {[%clk 0:02:09]} 22. b4 {[%clk 0:01:59]}  Nd6 {[%clk 0:02:09]} 23. Ng4 {[%clk 0:01:53]}  Rh5 {[%clk 0:02:06]} 24. a4 {[%clk 0:01:37]}  a6 {[%clk 0:02:05]} 25. Rb1 {[%clk 0:01:35]}  Qe6 {[%clk 0:02:05]} 26. Ne5 {[%clk 0:01:32]}  g5 {[%clk 0:01:54]} 27. Rb2 {[%clk 0:01:23]}  gxf4 {[%clk 0:01:51]} 28. Qxf4 {[%clk 0:01:23]}  Rf5 {[%clk 0:01:47]} 29. Qh4 {[%clk 0:01:21]}  Rgf8 {[%clk 0:01:46]} 30. h3 {[%clk 0:01:17]}  Qe8 {[%clk 0:01:40]} 31. Rbb1 {[%clk 0:01:13]}  Rh5 {[%clk 0:01:31]} 32. Qg4 {[%clk 0:01:06]}  Rg8 {[%clk 0:01:30]} 33. Qf4 {[%clk 0:01:00]}  Qe6 {[%clk 0:01:20]} 34. Ng4 {[%clk 0:00:56]}  Rf5 {[%clk 0:01:09]} 35. Qh2 {[%clk 0:00:49]}  Nc4 {[%clk 0:01:07]} 36. Rf1 {[%clk 0:00:47]}  Rgf8 {[%clk 0:00:46]} 37. Rxf5 {[%clk 0:00:39]}  Qxf5 {[%clk 0:00:47]} 38. Qc7 {[%clk 0:00:31]}  h5 {[%clk 0:00:38]} 39. Ne5 {[%clk 0:00:26]}  Nxe3 {[%clk 0:00:38]} 40. Nd7 {[%clk 0:00:14]}  Rg8 {[%clk 0:00:34]} 41. Qe5+ {[%clk 0:00:05]}  Qxe5 {[%clk 0:00:34]} 42. Nxe5 {[%clk 0:00:05]}  Rxg2+ {[%clk 0:00:34]} 43. Kh1 {[%clk 0:00:04]}  Rd2 {[%clk 0:00:30]} 44. b5 {[%clk 0:00:04]}  cxb5 {[%clk 0:00:27]} 45. axb5 {[%clk 0:00:04]}  a5 {[%clk 0:00:27]} 46. Rc1 {[%clk 0:00:04]}  a4 {[%clk 0:00:20]} 47. Rc7 {[%clk 0:00:00]}  a3 {[%clk 0:00:19]} 0-1


[Site "https://www.chess.com"]

[Event "Titled Tuesday Blitz June 27 Late 2023"]
[White "Arnold, Ken"]
[Black "Cooper, Aaron"]
[WhiteFideId "2056836"]
[BlackFideId "2634945"]
[WhiteElo "2395"]
[BlackElo "2172"]
[Result "1/2-1/2"]
[Round "3"]
[TimeControl "180+2"]
[Date "2023.06.27"]
[WhiteClock "0:00:08"]
[BlackClock "0:00:03"]
[Board "164"]

1. d4 {[%clk 0:03:00]}  Nf6 {[%clk 0:02:59]} 2. c4 {[%clk 0:03:01]}  e6 {[%clk 0:02:59]} 3. Nf3 {[%clk 0:03:01]}  d5 {[%clk 0:03:00]} 4. Bf4 {[%clk 0:03:01]}  Be7 {[%clk 0:02:59]} 5. e3 {[%clk 0:03:01]}  O-O {[%clk 0:02:59]} 6. Nc3 {[%clk 0:03:00]}  c6 {[%clk 0:02:56]} 7. a3 {[%clk 0:03:00]}  Nbd7 {[%clk 0:02:50]} 8. c5 {[%clk 0:03:00]}  b6 {[%clk 0:02:46]} 9. b4 {[%clk 0:03:00]}  a5 {[%clk 0:02:45]} 10. Bd3 {[%clk 0:02:52]}  bxc5 {[%clk 0:02:44]} 11. bxc5 {[%clk 0:02:52]}  Ba6 {[%clk 0:02:44]} 12. Rb1 {[%clk 0:02:45]}  Bxd3 {[%clk 0:02:44]} 13. Qxd3 {[%clk 0:02:44]}  Nh5 {[%clk 0:02:35]} 14. Be5 {[%clk 0:02:42]}  f6 {[%clk 0:02:24]} 15. Bg3 {[%clk 0:02:41]}  Rf7 {[%clk 0:02:14]} 16. O-O {[%clk 0:02:40]}  Nxg3 {[%clk 0:02:13]} 17. hxg3 {[%clk 0:02:39]}  Nf8 {[%clk 0:02:13]} 18. Rb7 {[%clk 0:02:31]}  Qc8 {[%clk 0:02:06]} 19. Rfb1 {[%clk 0:02:13]}  Bd8 {[%clk 0:02:06]} 20. Rxf7 {[%clk 0:02:12]}  Kxf7 {[%clk 0:02:07]} 21. e4 {[%clk 0:02:11]}  Bc7 {[%clk 0:01:54]} 22. exd5 {[%clk 0:02:09]}  exd5 {[%clk 0:01:45]} 23. Nh4 {[%clk 0:01:59]}  g6 {[%clk 0:01:45]} 24. Re1 {[%clk 0:01:53]}  Qd7 {[%clk 0:01:36]} 25. Na4 {[%clk 0:01:36]}  Ne6 {[%clk 0:01:29]} 26. Qe3 {[%clk 0:01:28]}  Ng5 {[%clk 0:01:19]} 27. Nc3 {[%clk 0:01:17]}  Re8 {[%clk 0:01:14]} 28. Qd2 {[%clk 0:01:16]}  Rxe1+ {[%clk 0:01:13]} 29. Qxe1 {[%clk 0:01:16]}  Ne6 {[%clk 0:01:14]} 30. Qe3 {[%clk 0:01:11]}  Qc8 {[%clk 0:01:14]} 31. Nf3 {[%clk 0:01:09]}  Qb8 {[%clk 0:01:07]} 32. Qh6 {[%clk 0:01:07]}  Kg8 {[%clk 0:01:07]} 33. Ne2 {[%clk 0:01:05]}  Qb1+ {[%clk 0:01:04]} 34. Kh2 {[%clk 0:01:04]}  Qe4 {[%clk 0:01:02]} 35. Qd2 {[%clk 0:00:52]}  Kg7 {[%clk 0:00:56]} 36. Kg1 {[%clk 0:00:48]}  h5 {[%clk 0:00:54]} 37. Kf1 {[%clk 0:00:47]}  Qb1+ {[%clk 0:00:53]} 38. Ne1 {[%clk 0:00:44]}  Qa1 {[%clk 0:00:50]} 39. Qd3 {[%clk 0:00:39]}  a4 {[%clk 0:00:45]} 40. Qa6 {[%clk 0:00:39]}  Nxd4 {[%clk 0:00:37]} 41. Nxd4 {[%clk 0:00:37]}  Qxd4 {[%clk 0:00:38]} 42. Qxc6 {[%clk 0:00:35]}  Ba5 {[%clk 0:00:35]} 43. Qb7+ {[%clk 0:00:25]}  Kh6 {[%clk 0:00:35]} 44. Qf7 {[%clk 0:00:19]}  Qd1 {[%clk 0:00:11]} 45. Qf8+ {[%clk 0:00:17]}  Kg5 {[%clk 0:00:11]} 46. Qe7 {[%clk 0:00:17]}  Bxe1 {[%clk 0:00:10]} 47. Qxe1 {[%clk 0:00:17]}  Qd3+ {[%clk 0:00:10]} 48. Kg1 {[%clk 0:00:16]}  Qxa3 {[%clk 0:00:11]} 49. f4+ {[%clk 0:00:14]}  Kf5 {[%clk 0:00:11]} 50. c6 {[%clk 0:00:13]}  Qc5+ {[%clk 0:00:10]} 51. Kh2 {[%clk 0:00:12]}  Qxc6 {[%clk 0:00:11]} 52. Qb1+ {[%clk 0:00:11]}  Ke6 {[%clk 0:00:08]} 53. Qxg6 {[%clk 0:00:11]}  Qc3 {[%clk 0:00:04]} 54. Qxh5 {[%clk 0:00:10]}  a3 {[%clk 0:00:03]} 55. Qe8+ {[%clk 0:00:10]}  Kd6 {[%clk 0:00:03]} 56. Qd8+ {[%clk 0:00:10]}  Kc5 {[%clk 0:00:03]} 57. Qc7+ {[%clk 0:00:10]}  Kd4 {[%clk 0:00:04]} 58. Qb6+ {[%clk 0:00:10]}  Kd3 {[%clk 0:00:04]} 59. Qa6+ {[%clk 0:00:09]}  Kc2 {[%clk 0:00:03]} 60. g4 {[%clk 0:00:09]}  Kb2 {[%clk 0:00:03]} 61. Qb5+ {[%clk 0:00:08]}  Qb3 {[%clk 0:00:03]} 62. Qe2+ {[%clk 0:00:08]}  Ka1 {[%clk 0:00:03]} 63. g5 {[%clk 0:00:07]}  fxg5 {[%clk 0:00:02]} 64. fxg5 {[%clk 0:00:07]}  a2 {[%clk 0:00:02]} 65. Qe5+ {[%clk 0:00:08]}  Qb2 {[%clk 0:00:02]} 66. Qxd5 {[%clk 0:00:08]}  Kb1 {[%clk 0:00:01]} 67. Qd1+ {[%clk 0:00:07]}  Qc1 {[%clk 0:00:02]} 68. Qb3+ {[%clk 0:00:08]}  Qb2 {[%clk 0:00:01]} 69. Qd1+ {[%clk 0:00:08]}  Qc1 {[%clk 0:00:02]} 70. Qb3+ {[%clk 0:00:08]}  Qb2 {[%clk 0:00:03]} 71. Qd1+ {[%clk 0:00:08]} 1/2-1/2


[Site "https://www.chess.com"]

[Event "Titled Tuesday Blitz June 27 Late 2023"]
[White "Kopacz, Grzegorz"]
[Black "Romero Ruscalleda, Josep"]
[WhiteFideId "1109880"]
[BlackFideId "2231859"]
[WhiteElo "2201"]
[BlackElo "2387"]
[Result "0-1"]
[Round "3"]
[TimeControl "180+2"]
[Date "2023.06.27"]
[WhiteClock "0:01:54"]
[BlackClock "0:01:52"]
[Board "165"]

1. d4 {[%clk 0:03:00]}  g6 {[%clk 0:03:00]} 2. e4 {[%clk 0:03:00]}  Bg7 {[%clk 0:03:00]} 3. c4 {[%clk 0:02:59]}  d6 {[%clk 0:03:01]} 4. Nc3 {[%clk 0:02:59]}  e5 {[%clk 0:03:02]} 5. d5 {[%clk 0:02:56]}  Ne7 {[%clk 0:03:01]} 6. Be3 {[%clk 0:02:55]}  O-O {[%clk 0:03:00]} 7. Be2 {[%clk 0:02:56]}  f5 {[%clk 0:03:00]} 8. f3 {[%clk 0:02:55]}  Nd7 {[%clk 0:02:56]} 9. Qd2 {[%clk 0:02:54]}  a5 {[%clk 0:02:54]} 10. g4 {[%clk 0:02:48]}  Nc5 {[%clk 0:02:47]} 11. gxf5 {[%clk 0:02:42]}  gxf5 {[%clk 0:02:47]} 12. Nh3 {[%clk 0:02:38]}  Ng6 {[%clk 0:02:37]} 13. Bg5 {[%clk 0:02:30]}  Bf6 {[%clk 0:02:33]} 14. O-O-O {[%clk 0:02:30]}  fxe4 {[%clk 0:02:19]} 15. Bxf6 {[%clk 0:02:21]}  Qxf6 {[%clk 0:02:19]} 16. Ng1 {[%clk 0:02:18]}  exf3 {[%clk 0:02:13]} 17. Nxf3 {[%clk 0:02:15]}  Bg4 {[%clk 0:02:04]} 18. Rdf1 {[%clk 0:02:12]}  Qf4 {[%clk 0:02:04]} 19. Qxf4 {[%clk 0:02:04]}  Rxf4 {[%clk 0:02:03]} 20. b3 {[%clk 0:02:02]}  Raf8 {[%clk 0:01:57]} 21. Ng5 {[%clk 0:02:01]}  Bxe2 {[%clk 0:01:53]} 22. Rxf4 {[%clk 0:01:54]}  Nxf4 {[%clk 0:01:52]} 0-1


[Site "https://www.chess.com"]

[Event "Titled Tuesday Blitz June 27 Late 2023"]
[White "Yolosz"]
[Black "Waldo Zalapa, Alejandro"]
[BlackFideId "5106109"]
[WhiteElo "2376"]
[BlackElo "2168"]
[Result "1-0"]
[Round "3"]
[TimeControl "180+2"]
[Date "2023.06.27"]
[WhiteClock "0:00:18"]
[BlackClock "0:00:35"]
[Board "166"]

1. d4 {[%clk 0:02:59]}  Nf6 {[%clk 0:02:57]} 2. Bf4 {[%clk 0:02:58]}  c5 {[%clk 0:02:56]} 3. e3 {[%clk 0:02:57]}  cxd4 {[%clk 0:02:56]} 4. exd4 {[%clk 0:02:57]}  d5 {[%clk 0:02:56]} 5. c3 {[%clk 0:02:54]}  Nc6 {[%clk 0:02:56]} 6. Bd3 {[%clk 0:02:54]}  Bg4 {[%clk 0:02:54]} 7. Qa4 {[%clk 0:02:50]}  e6 {[%clk 0:02:48]} 8. Nd2 {[%clk 0:02:48]}  Bd6 {[%clk 0:02:45]} 9. Bg5 {[%clk 0:02:43]}  O-O {[%clk 0:02:43]} 10. Ngf3 {[%clk 0:02:42]}  a6 {[%clk 0:02:40]} 11. Qc2 {[%clk 0:02:24]}  h6 {[%clk 0:02:40]} 12. Bh4 {[%clk 0:02:22]}  Rc8 {[%clk 0:02:31]} 13. a3 {[%clk 0:02:19]}  b5 {[%clk 0:02:29]} 14. h3 {[%clk 0:01:59]}  Bxf3 {[%clk 0:02:26]} 15. Nxf3 {[%clk 0:01:59]}  g5 {[%clk 0:02:10]} 16. Bg3 {[%clk 0:01:59]}  Bxg3 {[%clk 0:02:10]} 17. fxg3 {[%clk 0:02:00]}  Qd6 {[%clk 0:02:10]} 18. O-O {[%clk 0:01:47]}  Qxg3 {[%clk 0:02:05]} 19. a4 {[%clk 0:01:20]}  Nh5 {[%clk 0:02:02]} 20. axb5 {[%clk 0:01:10]}  axb5 {[%clk 0:02:02]} 21. Bxb5 {[%clk 0:01:10]}  Nf4 {[%clk 0:02:02]} 22. Kh1 {[%clk 0:01:07]}  Ne7 {[%clk 0:01:28]} 23. Qf2 {[%clk 0:00:58]}  Qxf2 {[%clk 0:01:26]} 24. Rxf2 {[%clk 0:00:59]}  Nf5 {[%clk 0:01:26]} 25. Kh2 {[%clk 0:00:53]}  Rb8 {[%clk 0:01:24]} 26. Bf1 {[%clk 0:00:52]}  Ne3 {[%clk 0:01:21]} 27. Ne5 {[%clk 0:00:48]}  Rb7 {[%clk 0:01:13]} 28. g3 {[%clk 0:00:45]}  Ng6 {[%clk 0:01:04]} 29. Nd3 {[%clk 0:00:39]}  f5 {[%clk 0:01:03]} 30. Nc5 {[%clk 0:00:38]}  Re7 {[%clk 0:00:59]} 31. Ra6 {[%clk 0:00:35]}  Rf6 {[%clk 0:00:58]} 32. b4 {[%clk 0:00:31]}  f4 {[%clk 0:00:57]} 33. gxf4 {[%clk 0:00:27]}  Nxf4 {[%clk 0:00:57]} 34. b5 {[%clk 0:00:25]}  Nxf1+ {[%clk 0:00:52]} 35. Rxf1 {[%clk 0:00:24]}  Ref7 {[%clk 0:00:52]} 36. b6 {[%clk 0:00:23]}  h5 {[%clk 0:00:47]} 37. b7 {[%clk 0:00:23]}  Rf8 {[%clk 0:00:47]} 38. Ra8 {[%clk 0:00:23]}  g4 {[%clk 0:00:46]} 39. hxg4 {[%clk 0:00:23]}  hxg4 {[%clk 0:00:46]} 40. Rxf8+ {[%clk 0:00:20]}  Rxf8 {[%clk 0:00:45]} 41. Rxf4 {[%clk 0:00:20]}  g3+ {[%clk 0:00:38]} 42. Kxg3 {[%clk 0:00:20]}  Rb8 {[%clk 0:00:37]} 43. Rf6 {[%clk 0:00:18]}  Kg7 {[%clk 0:00:35]} 44. Rxe6 {[%clk 0:00:18]} 1-0


[Site "https://www.chess.com"]

[Event "Titled Tuesday Blitz June 27 Late 2023"]
[White "Srdanovic, Jovana"]
[Black "campochess"]
[WhiteFideId "954810"]
[WhiteElo "2375"]
[BlackElo "2157"]
[Result "1-0"]
[Round "3"]
[TimeControl "180+2"]
[Date "2023.06.27"]
[WhiteClock "0:01:01"]
[BlackClock "0:00:27"]
[Board "168"]

1. d4 {[%clk 0:03:00]}  Nf6 {[%clk 0:02:59]} 2. c4 {[%clk 0:02:57]}  c5 {[%clk 0:02:59]} 3. d5 {[%clk 0:02:56]}  b5 {[%clk 0:02:59]} 4. cxb5 {[%clk 0:02:57]}  a6 {[%clk 0:02:59]} 5. bxa6 {[%clk 0:02:57]}  g6 {[%clk 0:02:58]} 6. Nc3 {[%clk 0:02:57]}  Bxa6 {[%clk 0:02:58]} 7. e4 {[%clk 0:02:57]}  Bxf1 {[%clk 0:02:52]} 8. Kxf1 {[%clk 0:02:57]}  d6 {[%clk 0:02:52]} 9. g3 {[%clk 0:02:58]}  Bg7 {[%clk 0:02:52]} 10. Kg2 {[%clk 0:02:59]}  O-O {[%clk 0:02:52]} 11. Nf3 {[%clk 0:02:59]}  Nbd7 {[%clk 0:02:52]} 12. Re1 {[%clk 0:03:00]}  Ng4 {[%clk 0:02:50]} 13. Nd2 {[%clk 0:02:54]}  Nge5 {[%clk 0:02:45]} 14. Qe2 {[%clk 0:02:54]}  Nb6 {[%clk 0:02:34]} 15. f4 {[%clk 0:02:54]}  Ned7 {[%clk 0:02:34]} 16. a4 {[%clk 0:02:53]}  Nc8 {[%clk 0:02:25]} 17. a5 {[%clk 0:02:41]}  Rxa5 {[%clk 0:02:20]} 18. Rxa5 {[%clk 0:02:37]}  Qxa5 {[%clk 0:02:19]} 19. Nc4 {[%clk 0:02:36]}  Qa6 {[%clk 0:02:13]} 20. e5 {[%clk 0:02:32]}  dxe5 {[%clk 0:02:01]} 21. fxe5 {[%clk 0:02:33]}  Ncb6 {[%clk 0:01:56]} 22. Nxb6 {[%clk 0:02:21]}  Qxe2+ {[%clk 0:01:55]} 23. Rxe2 {[%clk 0:02:18]}  Nxb6 {[%clk 0:01:55]} 24. Bf4 {[%clk 0:02:16]}  Rd8 {[%clk 0:01:51]} 25. d6 {[%clk 0:02:08]}  exd6 {[%clk 0:01:43]} 26. exd6 {[%clk 0:02:08]}  h6 {[%clk 0:01:40]} 27. Ne4 {[%clk 0:02:03]}  c4 {[%clk 0:01:34]} 28. Nc5 {[%clk 0:02:00]}  Nd5 {[%clk 0:01:32]} 29. d7 {[%clk 0:01:45]}  Bf6 {[%clk 0:01:10]} 30. Re8+ {[%clk 0:01:31]}  Kg7 {[%clk 0:01:08]} 31. Be5 {[%clk 0:01:27]}  Rxd7 {[%clk 0:01:02]} 32. Nxd7 {[%clk 0:01:25]}  Bxe5 {[%clk 0:01:00]} 33. Nxe5 {[%clk 0:01:23]}  c3 {[%clk 0:01:00]} 34. bxc3 {[%clk 0:01:23]}  Nxc3 {[%clk 0:01:00]} 35. Rc8 {[%clk 0:01:20]}  Nd5 {[%clk 0:00:58]} 36. Rc5 {[%clk 0:01:19]}  Ne3+ {[%clk 0:00:57]} 37. Kf3 {[%clk 0:01:18]}  Nf5 {[%clk 0:00:57]} 38. Rc7 {[%clk 0:01:17]}  Kf6 {[%clk 0:00:49]} 39. Nxf7 {[%clk 0:01:15]}  Nd4+ {[%clk 0:00:48]} 40. Ke4 {[%clk 0:01:14]}  Ne6 {[%clk 0:00:48]} 41. Ra7 {[%clk 0:01:12]}  h5 {[%clk 0:00:40]} 42. h4 {[%clk 0:01:12]}  Nc5+ {[%clk 0:00:35]} 43. Kd5 {[%clk 0:01:11]}  Nd3 {[%clk 0:00:35]} 44. Nh6 {[%clk 0:01:08]}  Nb4+ {[%clk 0:00:30]} 45. Kc5 {[%clk 0:01:02]}  Nd3+ {[%clk 0:00:30]} 46. Kd6 {[%clk 0:01:02]}  Nf2 {[%clk 0:00:27]} 47. Rf7# {[%clk 0:01:01]} 1-0


[Site "https://www.chess.com"]

[Event "Titled Tuesday Blitz June 27 Late 2023"]
[White "Sokolov, Andrei"]
[Black "Brown, Raehanna"]
[WhiteFideId "11600306"]
[BlackFideId "7402740"]
[WhiteElo "2370"]
[BlackElo "2145"]
[Result "1-0"]
[Round "3"]
[TimeControl "180+2"]
[Date "2023.06.27"]
[WhiteClock "0:00:06"]
[BlackClock "0:00:00"]
[Board "170"]

1. d4 {[%clk 0:03:00]}  Nf6 {[%clk 0:02:56]} 2. c4 {[%clk 0:02:58]}  g6 {[%clk 0:02:57]} 3. Nc3 {[%clk 0:02:57]}  Bg7 {[%clk 0:02:57]} 4. e4 {[%clk 0:02:57]}  d6 {[%clk 0:02:58]} 5. h3 {[%clk 0:02:57]}  O-O {[%clk 0:02:58]} 6. Be3 {[%clk 0:02:56]}  Nbd7 {[%clk 0:02:58]} 7. Bd3 {[%clk 0:02:53]}  c5 {[%clk 0:02:58]} 8. d5 {[%clk 0:02:47]}  a6 {[%clk 0:02:58]} 9. g4 {[%clk 0:02:41]}  b5 {[%clk 0:02:56]} 10. cxb5 {[%clk 0:02:35]}  axb5 {[%clk 0:02:57]} 11. Bxb5 {[%clk 0:02:29]}  Qa5 {[%clk 0:02:52]} 12. Bd3 {[%clk 0:02:27]}  Ba6 {[%clk 0:02:45]} 13. Ne2 {[%clk 0:02:18]}  Bxd3 {[%clk 0:02:32]} 14. Qxd3 {[%clk 0:02:19]}  Rfb8 {[%clk 0:02:31]} 15. Qc2 {[%clk 0:01:54]}  Qb4 {[%clk 0:02:14]} 16. Bc1 {[%clk 0:01:41]}  Ne5 {[%clk 0:01:01]} 17. O-O {[%clk 0:01:23]}  Nfd7 {[%clk 0:00:48]} 18. a3 {[%clk 0:01:09]}  Qc4 {[%clk 0:00:31]} 19. f4 {[%clk 0:00:36]}  Nd3 {[%clk 0:00:27]} 20. Rd1 {[%clk 0:00:19]}  Nxc1 {[%clk 0:00:18]} 21. Raxc1 {[%clk 0:00:18]}  Rb7 {[%clk 0:00:14]} 22. Rb1 {[%clk 0:00:17]}  Rab8 {[%clk 0:00:14]} 23. Rd2 {[%clk 0:00:13]}  Rb3 {[%clk 0:00:12]} 24. Nd1 {[%clk 0:00:11]}  Qxc2 {[%clk 0:00:09]} 25. Rxc2 {[%clk 0:00:12]}  Rxa3 {[%clk 0:00:09]} 26. bxa3 {[%clk 0:00:10]}  Rxb1 {[%clk 0:00:10]} 27. Rd2 {[%clk 0:00:09]}  Ra1 {[%clk 0:00:09]} 28. Kf2 {[%clk 0:00:09]}  Rxa3 {[%clk 0:00:10]} 29. Rb2 {[%clk 0:00:09]}  Bxb2 {[%clk 0:00:09]} 30. Nxb2 {[%clk 0:00:09]}  Ra2 {[%clk 0:00:09]} 31. Nd3 {[%clk 0:00:09]}  Nb6 {[%clk 0:00:09]} 32. Ke3 {[%clk 0:00:09]}  Nc4+ {[%clk 0:00:09]} 33. Kf3 {[%clk 0:00:08]}  Nd2+ {[%clk 0:00:08]} 34. Ke3 {[%clk 0:00:09]}  Nf1+ {[%clk 0:00:08]} 35. Kf2 {[%clk 0:00:09]}  Nd2 {[%clk 0:00:08]} 36. Ke3 {[%clk 0:00:09]}  c4 {[%clk 0:00:08]} 37. Nb4 {[%clk 0:00:07]}  Rb2 {[%clk 0:00:06]} 38. Nc6 {[%clk 0:00:06]}  Nf1+ {[%clk 0:00:04]} 39. Kf2 {[%clk 0:00:06]}  Rb1 {[%clk 0:00:03]} 40. Nxe7+ {[%clk 0:00:06]}  Kg7 {[%clk 0:00:03]} 41. Nc8 {[%clk 0:00:06]}  Nd2 {[%clk 0:00:02]} 42. Nxd6 {[%clk 0:00:06]}  c3 {[%clk 0:00:01]} 43. Nxc3 {[%clk 0:00:06]}  Rf1+ {[%clk 0:00:00]} 44. Ke2 {[%clk 0:00:06]} 1-0


[Site "https://www.chess.com"]